bitfinex/quotes_BTCUSD_20240731
["timestamp","ask_amount","ask_price","bid_price","bid_amount"]
[1722452058439,0.0448741,66697.0,66695.0,0.149935]
[1722452058699,0.06731265,66698.0,66696.0,0.0015542]
[1722452058932,0.149931,66697.0,66696.0,0.0015542]
[1722452059170,0.6859442,66697.0,66696.0,0.001]
[1722452059406,0.149937,66695.0,66692.0,0.0015542]
[1722452059653,0.149937,66695.0,66689.0,0.300809]
[1722452059654,0.06733884,66694.0,66691.0,0.1514992]
[1722452059882,0.04489907,66693.0,66691.0,0.1514982]
[1722452060114,0.04489907,66692.0,66691.0,0.0015542]
[1722452060375,0.04489844,66692.0,66691.0,0.0015542]
[1722452060623,0.04489844,66692.0,66691.0,0.1514992]
[1722452060938,0.06734766,66694.0,66691.0,0.149945]
[1722452060939,0.04490107,66694.0,66691.0,0.149945]
[1722452061170,0.04490107,66694.0,66692.0,0.0015542]
[1722452061392,0.04490107,66694.0,66693.0,0.14994]
[1722452061622,0.04490107,66694.0,66693.0,0.472821]
[1722452061846,0.04490107,66694.0,66693.0,0.449821]
[1722452062052,0.04490107,66694.0,66693.0,0.14994]
[1722452062236,0.04490107,66694.0,66692.0,0.149942]
[1722452062497,0.149932,66697.0,66692.0,0.149942]
[1722452062498,0.149932,66697.0,66693.0,0.0015542]
[1722452062651,0.04490705,66694.0,66692.0,0.149943]
[1722452062826,0.04490705,66694.0,66693.0,0.008]
[1722452062827,0.449815,66694.0,66693.0,0.008]
[1722452063025,0.149941,66693.0,66689.0,0.023913]
[1722452063224,0.04491486,66690.0,66689.0,0.000913]
[1722452063432,0.06737229,66690.0,66689.0,0.00157215]
[1722452063705,0.299877,66694.0,66689.0,0.00157215]
[1722452063909,0.21732443,66690.0,66689.0,0.023913]
[1722452064080,0.06737743,66690.0,66689.0,0.000913]
[1722452064389,1.17287107,66690.0,66689.0,0.000913]
[1722452064647,1.25377107,66690.0,66689.0,0.000913]
[1722452065053,1.4053703,66690.0,66689.0,0.005913]
[1722452065246,1.55492202,66690.0,66689.0,0.000913]
[1722452065456,1.40532279,66690.0,66689.0,0.000913]
[1722452065671,1.40532279,66690.0,66689.0,0.005913]
[1722452065879,1.34598372,66690.0,66689.0,0.005913]
[1722452066238,1.34798372,66690.0,66689.0,0.005913]
[1722452066437,1.34798372,66690.0,66689.0,0.000913]
[1722452066634,1.35598372,66690.0,66689.0,0.000913]
[1722452066835,1.34598372,66690.0,66689.0,0.000913]
[1722452067036,1.34998372,66690.0,66689.0,0.001913]
[1722452067709,1.47056287,66690.0,66689.0,0.001913]
[1722452068477,1.48056287,66690.0,66689.0,0.001913]
[1722452068906,1.47056287,66690.0,66689.0,0.001913]
[1722452069104,1.34998372,66690.0,66689.0,0.001913]
[1722452069303,1.35998372,66690.0,66689.0,0.001913]
[1722452070307,1.35998372,66690.0,66669.0,0.000913]
[1722452070308,1.501032,66670.0,66669.0,0.000913]
[1722452070487,1.72534784,66670.0,66669.0,0.000913]
[1722452070667,1.99482914,66670.0,66669.0,0.000913]
[1722452071107,0.750165,66652.0,66651.0,0.000913]
[1722452071334,0.92566523,66652.0,66651.0,0.000913]
[1722452071537,1.113531,66652.0,66651.0,0.000913]
[1722452071739,1.123531,66652.0,66651.0,0.000913]
[1722452071939,1.41256402,66652.0,66651.0,0.000913]
[1722452072094,0.813465,66652.0,66651.0,0.000913]
[1722452072295,0.813465,66652.0,66651.0,0.002913]
[1722452072495,0.89165061,66652.0,66651.0,0.002913]
[1722452072757,0.86925689,66652.0,66651.0,0.001913]
[1722452072985,0.824465,66652.0,66651.0,0.001913]
[1722452073163,0.011,66652.0,66651.0,0.001913]
[1722452073363,0.461099,66652.0,66651.0,0.001913]
[1722452074086,0.766165,66652.0,66651.0,0.01230927]
[1722452074282,0.766165,66652.0,66651.0,0.002913]
[1722452074509,0.761165,66652.0,66651.0,0.001913]
[1722452074953,1.054231,66652.0,66651.0,0.000913]
[1722452075452,1.2402541,66652.0,66651.0,0.000913]
[1722452075591,1.134831,66652.0,66651.0,0.000913]
[1722452076227,1.134831,66652.0,66651.0,0.001913]
[1722452076228,1.148831,66652.0,66651.0,0.001913]
[1722452076634,1.148831,66652.0,66651.0,0.000913]
[1722452076635,0.754165,66652.0,66651.0,0.000913]
[1722452077219,0.454099,66652.0,66651.0,0.000913]
[1722452077421,0.463099,66652.0,66651.0,0.01030927]
[1722452077623,0.013,66652.0,66651.0,0.000913]
[1722452077844,0.013,66652.0,66651.0,0.01030927]
[1722452078089,0.163033,66652.0,66651.0,0.01030927]
[1722452078383,0.763165,66652.0,66651.0,0.01030927]
[1722452078525,1.063231,66652.0,66651.0,0.000913]
[1722452078727,0.763165,66652.0,66651.0,0.000913]
[1722452078942,0.463099,66652.0,66651.0,0.000913]
[1722452079351,0.463099,66652.0,66651.0,0.01030927]
[1722452079551,0.463099,66652.0,66651.0,0.000913]
[1722452079984,0.163033,66652.0,66651.0,0.01030927]
[1722452080620,0.013,66652.0,66651.0,0.01030927]
[1722452081023,0.459099,66652.0,66651.0,0.01030927]
[1722452081229,0.450099,66652.0,66651.0,0.01030927]
[1722452081395,0.450099,66652.0,66651.0,0.003913]
[1722452081600,0.150033,66652.0,66651.0,0.003913]
[1722452081801,0.300057,66654.0,66651.0,0.003913]
[1722452081802,0.150029,66654.0,66651.0,0.01332456]
[1722452082003,0.150014,66661.0,66652.0,0.300063]
[1722452082259,0.150011,66662.0,66653.0,0.03240059]
[1722452082593,0.150013,66661.0,66656.0,0.150022]
[1722452082796,0.15001,66663.0,66653.0,0.023]
[1722452082974,0.474,66669.0,66658.0,0.300037]
[1722452083274,0.149997,66668.0,66659.0,0.03236768]
[1722452083476,0.299992,66669.0,66663.0,0.150006]
[1722452083726,0.2141,66673.0,66663.0,0.150006]
[1722452083727,0.00879053,66670.0,66665.0,0.150003]
[1722452084035,0.149992,66670.0,66666.0,0.1446]
[1722452084230,0.299966,66675.0,66666.0,0.1769293]
[1722452084231,0.149984,66674.0,66666.0,0.1769293]
[1722452084431,0.2141,66679.0,66669.0,0.149993]
[1722452084712,0.2141,66679.0,66666.0,0.1769293]
[1722452084713,0.00083,66669.0,66667.0,0.149998]
[1722452084926,0.00083,66669.0,66668.0,0.172997]
[1722452085796,0.00083,66669.0,66668.0,0.023]
[1722452086000,0.150825,66669.0,66667.0,0.0245542]
[1722452086217,0.749985,66668.0,66667.0,0.0015542]
[1722452086430,0.15001,66662.0,66661.0,0.0015542]
[1722452086602,0.5374855,66668.0,66656.0,0.0015542]
[1722452086603,0.150021,66657.0,66656.0,0.0015542]
[1722452086805,0.664164,66657.0,66656.0,0.0015542]
[1722452087005,0.664164,66657.0,66651.0,0.000913]
[1722452087006,0.450091,66653.0,66652.0,0.0015542]
[1722452087205,0.2141,66657.0,66651.0,0.000913]
[1722452087435,0.450099,66652.0,66651.0,0.000913]
[1722452087957,0.150033,66652.0,66651.0,0.000913]
[1722452088680,1.2857544,66652.0,66651.0,0.000913]
[1722452088877,1.189331,66652.0,66651.0,0.000913]
[1722452089138,1.189331,66652.0,66651.0,0.007913]
[1722452089984,1.203331,66652.0,66651.0,0.007913]
[1722452090395,1.203331,66652.0,66651.0,0.000913]
[1722452090866,1.203331,66652.0,66651.0,0.001913]
[1722452091137,1.189331,66652.0,66651.0,0.000913]
[1722452091321,1.189331,66652.0,66651.0,0.001913]
[1722452091639,1.21370321,66652.0,66651.0,0.000913]
[1722452091838,1.33888272,66652.0,66651.0,0.001913]
[1722452092246,1.35288272,66652.0,66651.0,0.001913]
[1722452092450,1.36288272,66652.0,66651.0,0.001913]
[1722452092660,1.65294872,66652.0,66651.0,0.001913]
[1722452092862,1.63894872,66652.0,66651.0,0.001913]
[1722452093035,1.33888272,66652.0,66651.0,0.001913]
[1722452093235,1.35188272,66652.0,66651.0,0.001913]
[1722452093434,1.35188272,66652.0,66651.0,0.000913]
[1722452093642,1.50136402,66652.0,66651.0,0.000913]
[1722452093836,1.50136402,66652.0,66651.0,0.001913]
[1722452094193,1.50136402,66652.0,66651.0,0.000913]
[1722452094398,1.35188272,66652.0,66651.0,0.001913]
[1722452095205,1.36102082,66652.0,66651.0,0.001913]
[1722452096640,1.37102082,66652.0,66651.0,0.001913]
[1722452096838,1.36102082,66652.0,66651.0,0.001913]
[1722452097040,1.51050212,66652.0,66651.0,0.001913]
[1722452097218,1.84056812,66652.0,66651.0,0.001913]
[1722452097580,1.52050212,66652.0,66651.0,0.001913]
[1722452098732,1.36102082,66652.0,66651.0,0.001913]
[1722452098944,0.7723031,66652.0,66651.0,0.001913]
[1722452099583,1.25192082,66652.0,66651.0,0.001913]
[1722452099782,1.23192082,66652.0,66651.0,0.001913]
[1722452100004,1.68988682,66652.0,66651.0,0.001913]
[1722452100211,1.83936812,66652.0,66651.0,0.001913]
[1722452100556,1.93936812,66652.0,66651.0,0.001913]
[1722452101887,1.63930212,66652.0,66651.0,0.001913]
[1722452102186,1.48982082,66652.0,66651.0,0.001913]
[1722452102493,1.78988682,66652.0,66651.0,0.001913]
[1722452102977,1.46982082,66652.0,66651.0,0.001913]
[1722452103379,1.48982082,66652.0,66651.0,0.001913]
[1722452104036,1.63930212,66652.0,66651.0,0.001913]
[1722452104681,1.93936812,66652.0,66651.0,0.001913]
[1722452105060,1.92636812,66652.0,66651.0,0.001913]
[1722452105389,1.94036812,66652.0,66651.0,0.001913]
[1722452105789,1.574577,66643.0,66642.0,0.000913]
[1722452106017,1.72412872,66643.0,66642.0,0.000913]
[1722452106212,1.71412872,66643.0,66642.0,0.000913]
[1722452107231,1.72112872,66643.0,66642.0,0.001913]
[1722452108414,1.73412872,66643.0,66642.0,0.001913]
[1722452108612,1.74412872,66643.0,66642.0,0.001913]
[1722452109198,1.76412872,66643.0,66642.0,0.001913]
[1722452109739,2.05801002,66643.0,66642.0,0.001913]
[1722452110136,2.15801002,66643.0,66642.0,0.001913]
[1722452110350,2.45811602,66643.0,66642.0,0.001913]
[1722452110553,2.45811602,66643.0,66629.0,0.009284]
[1722452110554,1.194577,66630.0,66629.0,0.009284]
[1722452110904,1.55822872,66630.0,66629.0,0.009284]
[1722452111070,0.75049,66623.0,66622.0,0.009295]
[1722452111271,1.42433772,66623.0,66622.0,0.009295]
[1722452111477,1.72453372,66623.0,66622.0,0.009295]
[1722452111682,1.71453372,66623.0,66622.0,0.009295]
[1722452111843,1.11414172,66623.0,66622.0,0.009295]
[1722452112288,1.42733772,66623.0,66622.0,0.009295]
[1722452112623,1.12714172,66623.0,66622.0,0.009295]
[1722452112858,1.42733772,66623.0,66622.0,0.009295]
[1722452113029,0.97759,66623.0,66622.0,0.009295]
[1722452113246,0.98459,66623.0,66622.0,0.010295]
[1722452113655,1.284786,66623.0,66622.0,0.010295]
[1722452114210,0.99361965,66623.0,66622.0,0.010295]
[1722452114635,0.99361965,66623.0,66622.0,0.002295]
[1722452114636,1.29381565,66623.0,66622.0,0.002295]
[1722452115366,1.28881565,66623.0,66622.0,0.002295]
[1722452116766,0.98861965,66623.0,66622.0,0.002295]
[1722452117160,1.28881565,66623.0,66622.0,0.002295]
[1722452117332,0.98861965,66623.0,66622.0,0.002295]
[1722452117536,0.98861965,66623.0,66622.0,0.142795]
[1722452117537,0.465294,66623.0,66622.0,0.142795]
[1722452117745,0.02,66623.0,66622.0,0.142795]
[1722452117944,0.170098,66623.0,66622.0,0.142795]
[1722452118144,0.77049,66623.0,66622.0,0.142795]
[1722452118363,0.470294,66623.0,66622.0,0.142795]
[1722452118538,0.457294,66623.0,66622.0,0.142795]
[1722452118939,0.76349,66623.0,66622.0,0.142795]
[1722452119176,0.89962971,66623.0,66622.0,0.002295]
[1722452119377,1.063686,66623.0,66622.0,0.002295]
[1722452119610,1.056686,66623.0,66622.0,0.001295]
[1722452120270,1.050686,66623.0,66622.0,0.001295]
[1722452120517,1.056686,66623.0,66622.0,0.002295]
[1722452120695,1.050686,66623.0,66622.0,0.001295]
[1722452121082,1.063686,66623.0,66622.0,0.002295]
[1722452121284,1.057686,66623.0,66622.0,0.001295]
[1722452121529,1.31257008,66623.0,66622.0,0.001295]
[1722452121727,1.64976608,66623.0,66622.0,0.002295]
[1722452121964,1.76276608,66623.0,66622.0,0.002295]
[1722452122159,1.90186608,66623.0,66622.0,0.002295]
[1722452123335,1.94539811,66623.0,66622.0,0.002295]
[1722452123537,1.90186608,66623.0,66622.0,0.002295]
[1722452124514,1.88186608,66623.0,66622.0,0.002295]
[1722452124738,1.32023772,66623.0,66622.0,0.002295]
[1722452124914,1.170686,66623.0,66622.0,0.002295]
[1722452125332,1.32023772,66623.0,66622.0,0.002295]
[1722452127442,0.77049,66623.0,66622.0,0.002295]
[1722452127880,1.070686,66623.0,66622.0,0.002295]
[1722452128086,0.77049,66623.0,66622.0,0.002295]
[1722452129670,0.02,66623.0,66617.0,0.300221]
[1722452129841,0.170099,66623.0,66618.0,0.233208]
[1722452130060,0.150102,66621.0,66618.0,0.09123882]
[1722452130222,0.150101,66622.0,66618.0,0.09123882]
[1722452130451,0.150103,66621.0,66618.0,0.09123882]
[1722452130846,0.02,66623.0,66618.0,0.24134682]
[1722452131046,0.300206,66621.0,66618.0,0.09123882]
[1722452131196,0.150107,66619.0,66618.0,0.09123882]
[1722452131397,0.150107,66619.0,66618.0,0.00913882]
[1722452131596,0.150107,66619.0,66618.0,0.001]
[1722452131597,0.450321,66619.0,66618.0,0.001]
[1722452131978,0.750535,66619.0,66618.0,0.001]
[1722452132324,1.050749,66619.0,66618.0,0.001]
[1722452132662,0.450348,66615.0,66614.0,0.009295]
[1722452133326,0.75058,66615.0,66614.0,0.009295]
[1722452134056,0.80533359,66615.0,66614.0,0.009295]
[1722452134206,0.75458,66615.0,66614.0,0.009295]
[1722452134610,0.75545682,66615.0,66614.0,0.011295]
[1722452134811,1.054812,66615.0,66614.0,0.011295]
[1722452134988,1.20436372,66615.0,66614.0,0.011295]
[1722452135559,0.90413172,66615.0,66614.0,0.011295]
[1722452136307,0.75458,66615.0,66614.0,0.011295]
[1722452136567,0.454348,66615.0,66614.0,0.011295]
[1722452137369,0.75458,66615.0,66614.0,0.011295]
[1722452137574,0.454348,66615.0,66614.0,0.011295]
[1722452138390,0.004,66615.0,66614.0,0.152295]
[1722452138563,0.004,66615.0,66614.0,0.16044989]
[1722452138765,0.004,66615.0,66614.0,0.31056789]
[1722452138970,0.004,66615.0,66614.0,0.16044989]
[1722452140789,0.004,66615.0,66614.0,0.61080489]
[1722452140993,0.004,66615.0,66614.0,0.63380489]
[1722452141738,0.004,66615.0,66614.0,0.93404189]
[1722452142574,0.300205,66622.0,66616.0,0.150113]
[1722452142759,0.15117396,66621.0,66617.0,0.17311]
[1722452142943,0.14992235,66621.0,66617.0,0.17311]
[1722452143159,0.150106,66620.0,66618.0,0.00813292]
[1722452143354,0.300201,66622.0,66618.0,0.15824192]
[1722452143355,0.00136365,66619.0,66618.0,0.15824192]
[1722452143587,0.00152403,66621.0,66618.0,0.00813292]
[1722452143885,0.0673617,66624.0,66620.0,0.150104]
[1722452143886,0.150096,66624.0,66620.0,0.150104]
[1722452144325,0.0673617,66626.0,66621.0,0.00811645]
[1722452144546,0.0673617,66622.0,66621.0,0.00811645]
[1722452144717,0.0673617,66623.0,66622.0,0.00811096]
[1722452144923,0.06839137,66624.0,66622.0,0.150098]
[1722452145277,0.30018,66627.0,66622.0,0.00811096]
[1722452145504,0.30903627,66628.0,66622.0,0.00811096]
[1722452145505,0.0674003,66623.0,66622.0,0.00811096]
[1722452145703,0.08986707,66624.0,66622.0,0.00811096]
[1722452145882,0.23996307,66624.0,66622.0,0.00811096]
[1722452146032,0.09142127,66623.0,66622.0,0.00811096]
[1722452146236,0.08986707,66623.0,66622.0,0.00811096]
[1722452146535,0.11233384,66624.0,66622.0,0.00811096]
[1722452146939,0.006,66623.0,66622.0,0.75861296]
[1722452147144,0.006,66623.0,66622.0,0.48141196]
[1722452147145,0.0958983,66623.0,66622.0,0.48141196]
[1722452147319,0.006,66623.0,66622.0,0.78161296]
[1722452147491,0.0674205,66625.0,66624.0,0.450288]
[1722452147694,0.11233384,66629.0,66625.0,0.150093]
[1722452147695,0.0682605,66626.0,66625.0,0.150093]
[1722452147860,0.0682605,66626.0,66625.0,0.45028]
[1722452148077,0.0682605,66626.0,66625.0,0.48137242]
[1722452148465,0.0682605,66626.0,66625.0,0.03109242]
[1722452148670,0.0682605,66626.0,66625.0,0.18118542]
[1722452148868,0.06827484,66626.0,66625.0,0.18118542]
[1722452149072,0.06827484,66626.0,66625.0,0.00809242]
[1722452149332,0.150931,66626.0,66625.0,0.00809242]
[1722452149521,0.157097,66624.0,66622.0,0.009]
[1722452149727,0.24702532,66624.0,66621.0,0.134]
[1722452149900,0.06744916,66622.0,66621.0,0.284102]
[1722452150232,0.06745107,66622.0,66621.0,0.284102]
[1722452150377,0.08992832,66623.0,66621.0,0.134]
[1722452150620,0.2625104,66622.0,66621.0,0.134]
[1722452150789,0.2625104,66622.0,66616.0,0.0625]
[1722452150790,0.1124104,66622.0,66616.0,0.0625]
[1722452150992,0.150108,66619.0,66616.0,0.0625]
[1722452151192,0.08995631,66618.0,66616.0,0.0625]
[1722452151433,0.150111,66617.0,66616.0,0.0625]
[1722452151791,0.39018031,66617.0,66614.0,0.009295]
[1722452151988,0.06748113,66615.0,66614.0,0.009295]
[1722452152188,0.06748113,66616.0,66614.0,0.009295]
[1722452152432,0.06748616,66616.0,66614.0,0.009295]
[1722452152992,0.06748616,66616.0,66615.0,0.150115]
[1722452153352,0.09098154,66617.0,66615.0,0.023]
[1722452153569,0.08998154,66617.0,66614.0,0.009295]
[1722452153697,0.24009554,66616.0,66614.0,0.009295]
[1722452153902,0.24209554,66616.0,66614.0,0.025295]
[1722452154098,0.09098154,66616.0,66614.0,0.011295]
[1722452154300,0.09198154,66616.0,66615.0,0.160116]
[1722452154545,0.09198154,66616.0,66615.0,0.01]
[1722452154750,0.09098154,66616.0,66614.0,0.161413]
[1722452154952,0.450348,66615.0,66614.0,0.011295]
[1722452155148,0.75058,66615.0,66614.0,0.011295]
[1722452155365,0.450348,66615.0,66614.0,0.009295]
[1722452155570,1.08238435,66615.0,66614.0,0.009295]
[1722452155799,1.09696375,66615.0,66614.0,0.009295]
[1722452155973,1.09696375,66615.0,66614.0,0.019295]
[1722452155974,1.54914441,66615.0,66614.0,0.019295]
[1722452156177,1.39719575,66615.0,66614.0,0.019295]
[1722452156379,1.54913977,66615.0,66614.0,0.019295]
[1722452156579,1.24890785,66615.0,66614.0,0.019295]
[1722452156779,1.24890785,66615.0,66614.0,0.009295]
[1722452156981,1.25869156,66615.0,66614.0,0.011295]
[1722452157187,1.55992356,66615.0,66614.0,0.022295]
[1722452157421,1.55892356,66615.0,66614.0,0.011295]
[1722452157907,1.55892356,66615.0,66614.0,0.012295]
[1722452157908,1.56892356,66615.0,66614.0,0.012295]
[1722452158432,1.56792356,66615.0,66614.0,0.010295]
[1722452158635,1.58192356,66615.0,66614.0,0.010295]
[1722452158746,1.42997946,66615.0,66614.0,0.010295]
[1722452158951,1.56792356,66615.0,66614.0,0.009295]
[1722452159151,1.55792356,66615.0,66614.0,0.009295]
[1722452159442,1.42797946,66615.0,66614.0,0.010295]
[1722452159653,1.57989271,66615.0,66614.0,0.002295]
[1722452159825,1.52136068,66615.0,66614.0,0.002295]
[1722452160288,1.49936068,66615.0,66614.0,0.001295]
[1722452160498,1.49936068,66615.0,66614.0,0.002295]
[1722452160499,1.38844743,66615.0,66614.0,0.002295]
[1722452160712,1.63792873,66615.0,66614.0,0.001295]
[1722452160914,1.94616073,66615.0,66614.0,0.002295]
[1722452161124,1.64592873,66615.0,66614.0,0.002295]
[1722452161673,1.96016073,66615.0,66614.0,0.002295]
[1722452162096,1.94616073,66615.0,66614.0,0.002295]
[1722452162324,1.94616073,66615.0,66591.0,0.1398]
[1722452162325,0.01,66608.0,66591.0,0.1398]
[1722452162440,0.62008372,66608.0,66591.0,0.1398]
[1722452162642,1.70702036,66608.0,66591.0,0.1398]
[1722452162867,1.97728436,66608.0,66591.0,0.1398]
[1722452163175,1.59087572,66608.0,66592.0,0.07476412]
[1722452163406,1.21431172,66608.0,66597.0,0.150156]
[1722452163614,1.21431172,66608.0,66592.0,0.07476412]
[1722452163615,1.22031172,66608.0,66594.0,0.150163]
[1722452163795,1.52057572,66608.0,66595.0,0.150161]
[1722452163990,1.52057572,66608.0,66592.0,0.07476412]
[1722452164148,1.52057572,66608.0,66592.0,0.22493112]
[1722452164345,1.52057572,66608.0,66593.0,0.150165]
[1722452164551,1.52057572,66608.0,66593.0,0.150164]
[1722452165086,1.52057572,66608.0,66592.0,0.22493012]
[1722452165317,1.52057572,66608.0,66592.0,0.07476412]
[1722452165556,0.006,66608.0,66606.0,0.072495]
[1722452165828,0.306264,66608.0,66606.0,0.072495]
[1722452165997,0.54631605,66608.0,66607.0,0.0175014]
[1722452166208,0.54631605,66608.0,66607.0,0.009295]
[1722452166427,0.456396,66608.0,66607.0,0.009295]
[1722452166632,0.54631602,66608.0,66607.0,0.009295]
[1722452166790,0.09691859,66608.0,66607.0,0.015295]
[1722452166994,0.08991859,66609.0,66607.0,0.159428]
[1722452167220,0.08991859,66610.0,66609.0,0.150129]
[1722452167417,0.08991859,66610.0,66609.0,0.450388]
[1722452167619,0.43512042,66618.0,66609.0,0.450388]
[1722452167620,0.08991859,66611.0,66610.0,0.450382]
[1722452167961,0.08991859,66612.0,66611.0,0.592275]
[1722452168077,0.06743269,66614.0,66613.0,0.450361]
[1722452168301,0.08991859,66615.0,66614.0,0.150117]
[1722452168523,0.08991859,66617.0,66616.0,0.150114]
[1722452168726,0.06742829,66618.0,66616.0,0.150114]
[1722452169118,0.06742829,66618.0,66617.0,0.00814109]
[1722452169525,0.08991859,66620.0,66617.0,0.00814109]
[1722452169526,0.08991859,66619.0,66617.0,0.00814109]
[1722452169743,0.11240206,66620.0,66618.0,0.0658]
[1722452169744,0.08991859,66620.0,66618.0,0.0658]
[1722452169906,0.26250306,66622.0,66618.0,0.596928]
[1722452169907,0.06742762,66619.0,66618.0,0.596928]
[1722452170111,0.11240206,66622.0,66619.0,0.150107]
[1722452170112,0.06742762,66620.0,66619.0,0.150107]
[1722452170309,0.06742762,66621.0,66618.0,0.1466]
[1722452170532,0.06742762,66620.0,66618.0,0.1466]
[1722452170750,0.009,66619.0,66618.0,0.1466]
[1722452170990,0.009,66619.0,66618.0,0.596928]
[1722452171178,0.009,66619.0,66618.0,0.897147]
[1722452171781,0.009,66619.0,66618.0,1.20549658]
[1722452172114,0.13490042,66630.0,66618.0,1.20549658]
[1722452172115,0.08991859,66627.0,66625.0,0.150093]
[1722452172318,0.06741718,66627.0,66625.0,0.45028]
[1722452172432,0.06741718,66627.0,66625.0,0.59596918]
[1722452172632,0.06741718,66631.0,66625.0,0.7455209]
[1722452172894,0.11240206,66634.0,66625.0,1.0687079]
[1722452172895,0.06741718,66634.0,66625.0,1.0687079]
[1722452173097,0.06739956,66636.0,66625.0,1.0687079]
[1722452173300,0.00184,66626.0,66625.0,1.0687079]
[1722452173504,0.00484,66626.0,66625.0,1.0687079]
[1722452173903,0.00084,66626.0,66625.0,1.0687079]
[1722452174113,0.00084,66626.0,66625.0,1.3808949]
[1722452174114,0.00184,66626.0,66625.0,1.3808949]
[1722452174695,0.00184,66626.0,66625.0,1.0727079]
[1722452174896,0.00184,66626.0,66625.0,1.3728949]
[1722452175300,0.00184,66626.0,66625.0,1.3658949]
[1722452175525,0.00184,66626.0,66625.0,1.0657079]
[1722452175877,0.00184,66626.0,66625.0,1.3748949]
[1722452176103,0.00284,66626.0,66625.0,1.3798949]
[1722452176835,0.00284,66626.0,66625.0,1.0797079]
[1722452177399,0.00284,66626.0,66625.0,1.3798949]
[1722452180173,0.00284,66626.0,66625.0,1.3808079]
[1722452183307,0.00284,66626.0,66625.0,1.0806209]
[1722452183721,0.00284,66626.0,66625.0,0.93106918]
[1722452185429,0.00284,66626.0,66625.0,1.3808079]
[1722452189656,0.00284,66626.0,66625.0,1.3728079]
[1722452191651,0.00284,66626.0,66625.0,1.3828079]
[1722452191782,0.00284,66626.0,66625.0,1.3728079]
[1722452193658,0.00284,66626.0,66625.0,1.3848079]
[1722452193854,0.00284,66626.0,66625.0,1.4848079]
[1722452194055,0.00284,66626.0,66625.0,1.8049949]
[1722452194458,0.00084,66626.0,66625.0,1.7859949]
[1722452194657,0.00084,66626.0,66625.0,1.7999949]
[1722452194915,0.00284,66626.0,66625.0,1.8039949]
[1722452195466,0.00184,66626.0,66625.0,1.7999949]
[1722452196045,0.00184,66626.0,66625.0,1.7679949]
[1722452196278,0.00184,66626.0,66625.0,1.7719949]
[1722452196611,0.00184,66626.0,66625.0,1.7579949]
[1722452196809,0.00184,66626.0,66625.0,1.7719949]
[1722452197207,0.00184,66626.0,66625.0,1.7579949]
[1722452197422,0.00184,66626.0,66625.0,1.7719949]
[1722452197654,0.00184,66626.0,66625.0,1.7819949]
[1722452197858,0.00184,66626.0,66625.0,1.7839949]
[1722452198186,0.00084,66626.0,66625.0,1.7799949]
[1722452198413,0.00184,66626.0,66625.0,1.7939949]
[1722452198972,0.00084,66626.0,66625.0,1.7799949]
[1722452199182,0.00184,66626.0,66625.0,1.7939949]
[1722452199555,0.00184,66626.0,66625.0,1.7819949]
[1722452199723,0.00184,66626.0,66625.0,1.7959949]
[1722452199941,0.00184,66626.0,66625.0,1.8059949]
[1722452200130,0.00184,66626.0,66625.0,1.7779949]
[1722452200581,0.00184,66626.0,66625.0,1.7679949]
[1722452201003,0.00184,66626.0,66625.0,1.7819949]
[1722452202203,0.00184,66626.0,66625.0,1.7939949]
[1722452205393,0.00184,66626.0,66625.0,1.7819949]
[1722452206394,0.00184,66626.0,66625.0,1.4818079]
[1722452208001,0.00184,66626.0,66625.0,1.3442079]
[1722452208118,0.00184,66626.0,66625.0,1.0440209]
[1722452209417,0.00184,66626.0,66625.0,1.3442079]
[1722452209779,0.00184,66626.0,66625.0,1.0440209]
[1722452209919,0.00184,66626.0,66625.0,1.34699626]
[1722452210870,0.00184,66626.0,66625.0,1.49759626]
[1722452211067,0.00184,66626.0,66625.0,1.79778326]
[1722452211267,0.00184,66626.0,66625.0,1.79978326]
[1722452212357,0.00184,66626.0,66625.0,1.48759626]
[1722452212821,0.00184,66626.0,66625.0,1.78778326]
[1722452213022,0.00184,66626.0,66625.0,1.48759626]
[1722452213509,0.00184,66626.0,66625.0,1.78778326]
[1722452215819,0.0281942,66644.0,66643.0,0.150053]
[1722452215975,0.0281942,66644.0,66643.0,0.173053]
[1722452216177,0.0281942,66644.0,66643.0,0.48388996]
[1722452216680,0.0281942,66644.0,66643.0,0.78399596]
[1722452216876,0.0809,66645.0,66644.0,0.750255]
[1722452217076,0.0809,66645.0,66644.0,0.773255]
[1722452217281,0.0809,66645.0,66644.0,0.78397773]
[1722452217478,0.11242465,66651.0,66644.0,0.78397773]
[1722452217479,0.04496986,66648.0,66647.0,0.75022]
[1722452217702,0.04496986,66648.0,66647.0,0.473132]
[1722452217902,0.14255479,66650.0,66647.0,0.473132]
[1722452217903,0.04496986,66649.0,66648.0,0.450126]
[1722452218101,0.14255479,66650.0,66649.0,0.150039]
[1722452218306,0.14255479,66650.0,66648.0,0.03368981]
[1722452218307,0.0751,66650.0,66648.0,0.03368981]
[1722452218477,0.16503972,66650.0,66648.0,0.023]
[1722452218679,0.0611,66649.0,66647.0,0.152043]
[1722452218919,0.15103972,66649.0,66648.0,0.023]
[1722452219159,0.15103972,66649.0,66647.0,0.002]
[1722452219160,0.300084,66648.0,66647.0,0.002]
[1722452219448,0.54006572,66648.0,66647.0,0.002]
[1722452219749,0.150044,66647.0,66643.0,0.150052]
[1722452219983,0.0450045,66644.0,66636.0,0.00915408]
[1722452220109,0.0450045,66644.0,66643.0,0.150052]
[1722452220341,0.17361126,66649.0,66644.0,0.15005]
[1722452220342,0.06750794,66646.0,66644.0,0.15005]
[1722452220545,0.06750794,66645.0,66642.0,0.150055]
[1722452220735,0.06750794,66645.0,66643.0,0.173052]
[1722452221186,0.06750794,66645.0,66643.0,0.023]
[1722452221408,0.06750794,66645.0,66642.0,0.150053]
[1722452221612,0.06750794,66645.0,66643.0,0.173051]
[1722452221907,0.06950794,66645.0,66643.0,0.025]
[1722452222110,0.06950794,66645.0,66635.0,0.00018065]
[1722452222111,0.15006,66640.0,66635.0,0.15025165]
[1722452222274,0.150059,66641.0,66635.0,0.15024965]
[1722452222476,0.04500795,66637.0,66635.0,0.15025165]
[1722452222885,0.0675169,66637.0,66635.0,0.00018065]
[1722452223051,0.0675169,66637.0,66636.0,0.150069]